bitfinex/quotes_SOLUSD_20250527
["timestamp","ask_amount","ask_price","bid_price","bid_amount"]
[1748317861633,36.52,173.74,173.71,13.42073797]
[1748317861947,38.82229077,173.74,173.73,13.42073797]
[1748317864041,38.82229077,173.74,173.73,20.97984373]
[1748317866452,36.52,173.74,173.73,20.97984373]
[1748317867046,38.82229077,173.74,173.73,20.97984373]
[1748317867462,38.82229077,173.74,173.73,55.49984373]
[1748317869260,38.82229077,173.74,173.73,20.97984373]
[1748317869465,38.82229077,173.74,173.73,55.49984373]
[1748317871335,38.82229077,173.74,173.73,34.52]
[1748317871661,38.82229077,173.74,173.73,55.49984373]
[1748317876857,38.82229077,173.74,173.73,20.97984373]
[1748317877060,38.82229077,173.74,173.73,55.49984373]
[1748317879867,36.52,173.74,173.73,55.49984373]
[1748317882165,38.82229077,173.74,173.73,55.49984373]
[1748317885082,38.82229077,173.74,173.73,20.97984373]
[1748317885374,38.82229077,173.74,173.66,1.5205]
[1748317885375,38.82229077,173.74,173.71,20.97984373]
[1748317885674,44.57801771,173.74,173.71,34.52]
[1748317886169,44.57801771,173.74,173.71,47.95183923]
[1748317886365,44.57801771,173.74,173.71,13.43183923]
[1748317886555,44.57801771,173.74,173.71,47.95183923]
[1748317886957,44.57801771,173.74,173.71,13.43183923]
[1748317887278,44.57801771,173.74,173.71,47.95183923]
[1748317887480,44.57801771,173.74,173.71,34.52]
[1748317888762,47.88785112,173.74,173.71,34.52]
[1748317888960,47.88785112,173.74,173.7,20.9875548]
[1748317889162,47.88785112,173.74,173.7,55.5075548]
[1748317889884,2.30255583,173.72,173.7,55.5075548]
[1748317891282,2.30255583,173.72,173.71,20.9875548]
[1748317892682,2.3024233,173.73,173.71,20.9875548]
[1748317892977,2.3024233,173.73,173.72,20.9875548]
[1748317893484,5.61225671,173.73,173.72,20.9875548]
[1748317893792,5.61225671,173.73,173.71,20.9875548]
[1748317894687,5.61225671,173.73,173.71,55.5075548]
[1748317897183,5.61225671,173.73,173.71,20.9875548]
[1748317897483,5.61225671,173.73,173.71,55.5275548]
[1748317897685,5.61225671,173.73,173.72,20.9875548]
[1748317904871,3.30983341,173.73,173.72,20.9875548]
[1748317905683,42.13212684,173.74,173.72,20.9875548]
[1748317905873,42.13212684,173.74,173.73,55.5275548]
[1748317906490,38.82229343,173.74,173.73,55.5275548]
[1748317907506,42.13212684,173.74,173.73,55.5275548]
[1748317908104,42.13212684,173.74,173.73,47.96518029]
[1748317908279,38.82229343,173.74,173.73,47.96518029]
[1748317910598,38.82229343,173.74,173.73,34.54]
[1748317910804,38.82229343,173.74,173.73,34.52]
[1748317911507,38.82229343,173.74,173.73,47.94518029]
[1748317915103,36.52,173.74,173.73,47.94518029]
[1748317915778,5.60834898,173.76,173.73,47.94518029]
[1748317916000,5.60834898,173.76,173.75,20.97552797]
[1748317916295,5.60834898,173.76,173.75,55.49552797]
[1748317917416,5.60834898,173.76,173.75,20.97552797]
[1748317917594,5.60834898,173.76,173.72,20.97552797]
[1748317917797,5.60834898,173.76,173.73,34.52]
[1748317918605,3.30622954,173.75,173.73,34.52]
[1748317918982,2.30229077,173.74,173.73,34.52]
[1748317919194,2.30229077,173.74,173.71,55.49552797]
[1748317920210,2.30229077,173.74,173.72,20.97552797]
[1748317921210,8.05709023,173.76,173.72,20.97552797]
[1748317921694,36.46,173.75,173.72,20.97552797]
[1748317922081,36.46,173.75,173.71,34.52]
[1748317922082,36.46,173.75,173.71,55.49552797]
[1748317922299,3.30602832,173.74,173.71,55.49552797]
[1748317923029,3.30602832,173.74,173.73,20.97552797]
[1748317923393,5.60831909,173.74,173.73,20.97552797]
[1748317925827,5.60831909,173.74,173.73,55.49552797]
[1748317926026,2.30229077,173.74,173.73,55.49552797]
[1748317930717,36.46,173.75,173.73,55.49552797]
[1748317930718,38.76219069,173.75,173.73,55.49552797]
[1748317930893,38.76219069,173.75,173.74,20.97552797]
[1748317931089,2.30219069,173.75,173.74,20.97552797]
[1748317931319,2.3018933,173.77,173.74,20.97552797]
[1748317931595,2.3018933,173.77,173.75,55.49552797]
[1748317931810,3.30670565,173.76,173.75,55.49552797]
[1748317933397,5.60873143,173.76,173.75,55.49552797]
[1748317935923,5.60873143,173.76,173.75,47.94393084]
[1748317939019,5.60873143,173.76,173.73,34.52]
[1748317939214,5.60873143,173.76,173.73,47.94393084]
[1748317939423,11.36379588,173.76,173.72,47.94393084]
[1748317939716,8.05709023,173.76,173.72,13.42393084]
[1748317939894,8.05709023,173.76,173.71,34.52]
[1748317939895,3.30735767,173.75,173.73,20.98077072]
[1748317941124,2.30229077,173.74,173.73,20.98077072]
[1748317941510,5.60964844,173.74,173.73,20.98077072]
[1748317947948,5.60964844,173.74,173.72,20.98077072]
[1748317948132,5.60964844,173.74,173.71,20.98077072]
[1748317949346,2.30255583,173.72,173.71,20.98077072]
[1748317950648,5.6099135,173.72,173.71,20.98077072]
[1748317957930,5.6099135,173.72,173.7,20.98077072]
[1748317958160,3.30735767,173.71,173.7,20.98077072]
[1748317958463,3.30735767,173.71,173.67,59.0]
[1748317958663,3.30735767,173.71,173.7,20.98077072]
[1748317958837,3.30735767,173.71,173.69,20.98077072]
[1748317959356,5.61017862,173.7,173.69,20.98077072]
[1748317960046,5.61017862,173.7,173.62,86.6116]
[1748317960047,11.367231,173.7,173.62,86.6116]
[1748317960231,3.30735767,173.69,173.67,13.43387825]
[1748317960436,39.74735767,173.69,173.67,13.43387825]
[1748317961259,39.74735767,173.69,173.62,60.6116]
[1748317961463,2.30308613,173.68,173.67,13.43387825]
[1748317961843,2.30308613,173.68,173.62,60.6116]
[1748317961844,24.26009266,173.68,173.66,13.43387825]
[1748317962669,3.30735767,173.67,173.66,13.43387825]
[1748317963459,5.61057641,173.67,173.66,13.43387825]
[1748317964039,5.61057641,173.67,173.66,20.99808882]
[1748317966363,2.30321874,173.67,173.66,20.99808882]
[1748317978883,2.30321874,173.67,173.63,34.54]
[1748317979055,2.30321874,173.67,173.66,20.99808882]
[1748317984015,2.30321874,173.67,173.66,13.43834534]
[1748317984399,38.72321874,173.67,173.66,13.43834534]
[1748317989702,36.42,173.67,173.66,13.43834534]
[1748317992398,36.42,173.67,173.66,47.97834534]
[1748317997904,36.42,173.67,173.66,13.43834534]
[1748317998088,36.42,173.67,173.66,47.97834534]
[1748317998292,4.13419709,173.72,173.66,47.97834534]
[1748317998604,36.42,173.71,173.66,93.54]
[1748317998796,36.42,173.71,173.7,13.43834534]
[1748318000399,39.72571138,173.71,173.7,13.43834534]
[1748318006111,42.02841233,173.71,173.66,93.54]
[1748318006304,42.02841233,173.71,173.7,13.43834534]
[1748318008014,42.02841233,173.71,173.66,93.54]
[1748318008306,42.02841233,173.71,173.69,13.43834534]
[1748318009913,3.30571138,173.7,173.69,13.43834534]
[1748318011320,5.60853233,173.7,173.69,13.43834534]
[1748318015316,5.60853233,173.7,173.64,59.0]
[1748318015608,5.60853233,173.7,173.68,13.43834534]
[1748318016415,5.60866491,173.69,173.68,13.43834534]
[1748318018215,2.30295353,173.69,173.68,13.43834534]
[1748318018796,5.60866491,173.69,173.68,13.43834534]
[1748318019720,3.30571138,173.69,173.68,13.43834534]
[1748318021430,5.60866491,173.69,173.68,13.43834534]
[1748318021814,5.60866491,173.69,173.64,59.0]
[1748318022014,5.60866491,173.69,173.68,13.43834534]
[1748318024621,5.60866491,173.69,173.65,34.54]
[1748318024935,2.30295353,173.69,173.67,13.43834534]
[1748318025723,2.30295353,173.69,173.68,13.43834534]
[1748318026425,2.30282095,173.7,173.65,34.54]
[1748318026739,2.30282095,173.7,173.68,13.43834534]
[1748318027250,3.30705807,173.69,173.68,13.43834534]
[1748318027642,5.6100116,173.69,173.68,13.43834534]
[1748318031840,5.6100116,173.69,173.62,60.6116]
[1748318031841,18.64964886,173.68,173.62,60.6116]
[1748318032047,18.64964886,173.68,173.65,13.43834534]
[1748318032350,2.30321874,173.67,173.65,13.43834534]
[1748318032748,2.30321874,173.67,173.63,34.54]
[1748318032749,2.30312403,173.68,173.66,13.43834534]
[1748318032921,2.30312403,173.68,173.67,13.43834534]
[1748318033452,5.6101821,173.68,173.67,13.43834534]
[1748318034748,5.6101821,173.68,173.63,34.54]
[1748318035050,11.36789743,173.68,173.65,13.43834534]
[1748318035227,11.36789743,173.68,173.66,13.43834534]
[1748318035547,36.36,173.67,173.66,13.43834534]
[1748318035849,39.66705807,173.67,173.66,13.43834534]
[1748318036047,41.97027681,173.67,173.66,13.43834534]
[1748318038247,39.66705807,173.67,173.66,13.43834534]
[1748318038547,36.36,173.67,173.66,13.43834534]
[1748318039049,4.13419709,173.7,173.66,47.97834534]
[1748318039050,2.30299281,173.69,173.66,47.97834534]
[1748318039242,2.30299281,173.69,173.68,13.43834534]
[1748318039443,6.43701972,173.7,173.68,13.43834534]
[1748318039620,6.43701972,173.7,173.69,13.43834534]
[1748318040352,5.61182629,173.7,173.69,13.43834534]
[1748318046668,3.30900366,173.7,173.69,47.97834534]
[1748318047664,2.30270107,173.71,173.69,47.97834534]
[1748318047957,2.30270107,173.71,173.7,13.43834534]
[1748318048961,8.05848155,173.73,173.69,34.54]
[1748318049157,8.05848155,173.73,173.71,13.43834534]
[1748318049942,3.30795597,173.72,173.71,13.43834534]
[1748318051157,5.6105118,173.72,173.71,13.43834534]
[1748318052457,5.6105118,173.72,173.69,34.54]
[1748318052657,5.6105118,173.72,173.71,13.43834534]
[1748318057360,5.6105118,173.72,173.7,13.43834534]
[1748318058061,5.6105118,173.72,173.69,34.54]
[1748318058365,5.6105118,173.72,173.69,47.97834534]
[1748318058550,3.30795597,173.71,173.69,47.97834534]
[1748318059375,2.30282095,173.7,173.68,13.43834534]
[1748318060865,26.70859428,173.72,173.68,13.43834534]
[1748318061775,26.70859428,173.72,173.64,85.0]
[1748318062070,26.70859428,173.72,173.68,13.43834534]
[1748318062584,2.30282095,173.7,173.68,13.43834534]
[1748318063777,2.30282095,173.7,173.67,13.43834534]
[1748318064079,2.30282095,173.7,173.65,34.54]
[1748318064080,8.05987333,173.7,173.65,34.54]
[1748318064247,8.05987333,173.7,173.66,13.43834534]
[1748318065663,2.30308613,173.68,173.66,13.43834534]
[1748318066557,8.06080146,173.68,173.64,13.43834534]
[1748318066872,3.3065469,173.67,173.65,13.43834534]
[1748318067181,3.3065469,173.67,173.63,47.97834534]
[1748318067363,3.3065469,173.67,173.63,13.43834534]
[1748318067560,2.30335137,173.66,173.63,47.97834534]
[1748318068157,5.60989827,173.66,173.63,47.97834534]
[1748318068659,5.60989827,173.66,173.63,13.43834534]
[1748318068966,5.60989827,173.66,173.63,47.97834534]
[1748318069165,20.9528676,173.67,173.63,47.97834534]
[1748318069472,26.71091447,173.67,173.63,13.43834534]
[1748318069980,40.14925981,173.67,173.62,47.97834534]
[1748318070675,40.14925981,173.67,173.62,13.43834534]
[1748318070858,13.43834534,173.66,173.61,13.43834534]
[1748318071370,18.64964886,173.63,173.57,1.6655]
[1748318071571,18.64964886,173.63,173.57,13.43834534]
[1748318071572,13.43834534,173.61,173.57,13.43834534]
[1748318071760,13.43834534,173.61,173.57,47.97834534]
[1748318072950,2.30414746,173.6,173.57,13.43834534]
[1748318073151,2.30414746,173.6,173.57,47.97834534]
[1748318074865,2.30414746,173.6,173.57,34.54]
[1748318075453,2.30414746,173.6,173.57,13.43834534]
[1748318077786,2.30414746,173.6,173.56,47.97834534]
[1748318078177,2.30414746,173.6,173.56,13.43834534]
[1748318078482,2.30414746,173.6,173.56,47.97834534]
[1748318080288,13.43834534,173.59,173.53,60.5509]
[1748318080468,13.43834534,173.59,173.55,13.43834534]
[1748318080969,13.43834534,173.59,173.55,47.99834534]
[1748318081165,13.43834534,173.59,173.55,13.43834534]
[1748318081361,13.43834534,173.59,173.55,47.99834534]
[1748318081782,2.30441295,173.58,173.52,59.0]
[1748318081984,15.74275829,173.58,173.54,13.43834534]
[1748318083492,15.74275829,173.58,173.54,47.99834534]
[1748318085186,2.30441295,173.58,173.54,47.99834534]
[1748318087191,15.74275829,173.58,173.54,47.99834534]
[1748318087691,36.34,173.57,173.54,47.99834534]
[1748318088188,36.34,173.57,173.54,34.56]
[1748318088367,13.43834534,173.56,173.49,60.6347]
[1748318088567,13.43834534,173.55,173.5,47.99834534]
[1748318088768,13.43834534,173.55,173.51,13.43834534]
[1748318089395,2.3049441,173.54,173.51,13.43834534]
[1748318089903,2.3049441,173.54,173.52,13.43834534]
[1748318090566,2.3049441,173.54,173.51,13.43834534]
[1748318090767,2.3049441,173.54,173.51,47.99834534]
[1748318091079,2.3049441,173.54,173.51,13.43834534]
[1748318091262,2.3049441,173.54,173.51,47.99834534]
[1748318091490,2.30481129,173.55,173.51,47.99834534]
[1748318091770,2.30481129,173.55,173.52,13.43834534]
[1748318091970,2.30481129,173.55,173.53,13.43834534]
[1748318092568,2.30481129,173.55,173.52,13.43834534]
[1748318093588,15.74302383,173.56,173.51,47.99834534]
[1748318093774,34.39267269,173.56,173.51,47.99834534]
[1748318093966,47.74696037,173.56,173.51,55.59093678]
[1748318096187,18.64964886,173.55,173.49,60.6347]
[1748318096390,39.68058564,173.55,173.51,21.03093678]
[1748318097380,2.3049441,173.54,173.51,21.03093678]
[1748318099175,2.3049441,173.54,173.5,55.59093678]
[1748318100393,8.06730436,173.54,173.5,55.59093678]
[1748318100694,29.09824114,173.54,173.5,55.59093678]
[1748318100891,2.3049441,173.54,173.51,21.03093678]
[1748318101197,2.30481129,173.55,173.52,21.03093678]
[1748318103297,23.33561527,173.56,173.51,21.03093678]
[1748318106104,29.09731151,173.56,173.51,21.03093678]
[1748318110618,32.39159916,173.56,173.51,21.03093678]
[1748318112512,32.39159916,173.56,173.5,34.56]
[1748318112898,32.39159916,173.56,173.51,21.03093678]
[1748318114793,2.3049441,173.54,173.51,21.03093678]
[1748318115816,5.59923175,173.54,173.51,21.03093678]
[1748318116015,5.59923175,173.54,173.51,13.45965588]
[1748318116417,41.93923175,173.54,173.51,13.45965588]
[1748318117319,38.6449441,173.54,173.51,13.45965588]
[1748318120329,2.3049441,173.54,173.53,13.45965588]
[1748318120503,38.64467849,173.56,173.53,48.01965588]
[1748318120703,38.64467849,173.56,173.54,13.45965588]
[1748318121326,2.30467849,173.56,173.54,13.45965588]
[1748318121517,2.30467849,173.56,173.55,13.45965588]
[1748318123105,5.61265491,173.56,173.55,13.45965588]
[1748318130722,3.30797642,173.56,173.55,13.45965588]
[1748318131325,36.34,173.57,173.55,13.45965588]
[1748318131522,36.34,173.57,173.56,13.45965588]
[1748318132032,38.644561,173.57,173.56,48.01965588]
[1748318132427,2.30439786,173.59,173.56,48.01965588]
[1748318132633,38.60439786,173.59,173.57,13.45965588]
[1748318133110,41.91318557,173.59,173.57,13.45965588]
[1748318134137,3.30878771,173.59,173.58,13.45965588]
[1748318134633,5.61297352,173.6,173.58,13.45965588]
[1748318134932,5.61297352,173.6,173.59,48.01965588]
[1748318136040,2.30401474,173.61,173.59,48.01965588]
[1748318136232,2.30401474,173.61,173.6,13.45965588]
[1748318136736,2.30401474,173.61,173.59,34.56]
[1748318137118,2.30401474,173.61,173.57,13.45965588]
[1748318137319,13.45965588,173.6,173.58,34.56]
[1748318137840,2.3042802,173.59,173.56,93.56]
[1748318138019,2.3042802,173.59,173.56,34.56]
[1748318138333,5.60871709,173.59,173.56,34.56]
[1748318138738,5.60871709,173.59,173.51,59.0]
[1748318138932,3.30443689,173.58,173.55,13.45965588]
[1748318139123,3.30443689,173.58,173.55,48.01965588]
[1748318140340,2.30454571,173.57,173.55,48.01965588]
[1748318140917,2.30454571,173.57,173.55,13.45965588]
[1748318141122,2.30454571,173.57,173.55,48.01965588]
[1748318143334,3.30443689,173.59,173.56,13.45965588]
[1748318143523,2.30442309,173.58,173.55,34.56]
[1748318143724,2.30442309,173.58,173.57,13.45965588]
[1748318144123,2.30442309,173.58,173.56,13.45965588]
[1748318144856,2.3042802,173.59,173.56,13.45965588]
[1748318145734,5.60871709,173.59,173.56,13.45965588]
[1748318146748,5.60871709,173.59,173.57,13.45965588]
[1748318146947,2.3042802,173.59,173.57,13.45965588]
[1748318147756,2.3042802,173.59,173.56,13.45965588]
[1748318147959,2.3042802,173.59,173.56,21.01966824]
[1748318148259,5.60871709,173.59,173.56,21.01966824]
[1748318149156,2.3042802,173.59,173.56,21.01966824]
[1748318150053,2.3042802,173.59,173.55,34.56]
[1748318150254,2.3042802,173.59,173.55,55.57966824]
[1748318151252,2.3042802,173.59,173.56,21.01966824]
[1748318152153,44.36451612,173.6,173.56,21.01966824]
[1748318152858,3.30479875,173.59,173.56,21.01966824]
[1748318154055,44.36451612,173.6,173.56,21.01966824]
[1748318156560,3.30565838,173.59,173.56,21.01966824]
[1748318157663,2.30454571,173.57,173.56,21.01966824]
[1748318159063,2.30441295,173.58,173.56,21.01966824]
[1748318159564,8.06544532,173.58,173.52,59.0]
[1748318159760,8.06544532,173.58,173.55,21.01966824]
[1748318159957,8.06544532,173.58,173.56,34.56]
[1748318161466,5.76103237,173.58,173.56,34.56]
[1748318164671,3.31014788,173.57,173.56,34.56]
[1748318165170,5.61469359,173.57,173.56,34.56]
[1748318169674,5.61469359,173.57,173.56,55.57966824]
[1748318170054,5.61469359,173.57,173.56,48.01156794]
[1748318170995,2.30454571,173.57,173.56,48.01156794]
[1748318171583,2.3042802,173.59,173.56,48.01156794]
[1748318171756,2.3042802,173.59,173.58,13.45156794]
[1748318172364,5.61640077,173.59,173.58,13.45156794]
[1748318175787,3.31212057,173.59,173.58,13.45156794]
[1748318176296,2.30401474,173.61,173.58,13.45156794]
[1748318176495,2.30401474,173.61,173.6,13.45156794]
[1748318178092,5.61481116,173.61,173.6,13.45156794]
[1748318179591,5.61481116,173.61,173.59,48.01156794]
[1748318180190,5.61481116,173.61,173.55,60.5382]
[1748318180361,3.31079642,173.6,173.59,13.45156794]
[1748318180561,3.31079642,173.6,173.59,48.01156794]
[1748318182094,5.61494388,173.6,173.59,48.01156794]
[1748318182273,5.61494388,173.6,173.59,34.56]
[1748318183162,5.61494388,173.6,173.58,13.45156794]
[1748318183485,5.61494388,173.6,173.59,34.56]
[1748318185885,5.61494388,173.6,173.59,48.01156794]
[1748318187209,3.31079642,173.6,173.59,48.01156794]
[1748318187989,5.61468419,173.62,173.59,48.01156794]
[1748318188293,5.61468419,173.62,173.61,13.45156794]
[1748318189915,5.61468419,173.62,173.59,34.56]
[1748318190193,5.61468419,173.62,173.61,13.45156794]
[1748318191391,5.61468419,173.62,173.59,34.56]
[1748318191392,5.61468419,173.62,173.6,13.45156794]
[1748318192185,2.30374935,173.63,173.6,13.45156794]
[1748318194101,2.30401474,173.61,173.6,13.45156794]
[1748318195498,2.30374935,173.63,173.6,13.45156794]
[1748318197800,2.30401474,173.61,173.59,34.56]
[1748318197980,2.30401474,173.61,173.6,13.45156794]
[1748318198903,2.30374935,173.63,173.6,13.45156794]
[1748318201502,3.30700365,173.62,173.6,13.45156794]
[1748318202901,2.30374935,173.63,173.6,13.45156794]
[1748318204808,2.30401474,173.61,173.6,13.45156794]
[1748318205805,2.30388204,173.62,173.6,13.45156794]
[1748318206983,2.30388204,173.62,173.61,13.45156794]
[1748318207184,2.30374935,173.63,173.61,13.45156794]
[1748318208488,5.61135375,173.62,173.61,13.45156794]
[1748318209316,5.61135375,173.62,173.58,13.45156794]
[1748318209606,11.37105885,173.62,173.59,34.56]
[1748318210912,2.30414746,173.6,173.59,34.56]
[1748318211613,8.06451612,173.6,173.58,34.56]
[1748318211784,8.06451612,173.6,173.56,13.45156794]
[1748318212105,21.51608406,173.6,173.56,34.56]
[1748318212310,3.30747171,173.59,173.55,48.01156794]
[1748318213015,2.30441295,173.58,173.55,48.01156794]
[1748318213905,2.30441295,173.58,173.56,13.45156794]
[1748318215214,19.2119366,173.6,173.56,13.45156794]
[1748318215415,19.2119366,173.6,173.56,48.01156794]
[1748318216813,2.30441295,173.58,173.56,48.01156794]
[1748318217209,2.30441295,173.58,173.56,13.45156794]
[1748318217393,2.30441295,173.58,173.56,48.01156794]
[1748318219220,2.3042802,173.59,173.56,48.01156794]
[1748318222449,3.30932268,173.58,173.56,48.01156794]
[1748318222944,2.30454571,173.57,173.56,48.01156794]
[1748318223845,2.30454571,173.57,173.56,13.45156794]
[1748318224014,8.06451612,173.6,173.56,48.01156794]
[1748318224915,2.30441295,173.58,173.56,48.01156794]
[1748318226245,2.3042802,173.59,173.56,48.01156794]
[1748318226835,2.3042802,173.59,173.56,34.56]
[1748318226836,15.75584814,173.59,173.56,34.56]
[1748318227043,2.3042802,173.59,173.56,34.56]
[1748318227335,2.3042802,173.59,173.56,48.01156794]
[1748318227513,3.3084243,173.58,173.56,34.56]
[1748318227712,3.3084243,173.58,173.57,13.45156794]
[1748318230222,2.30388204,173.62,173.57,13.45156794]
[1748318230424,2.30388204,173.62,173.6,13.45156794]
[1748318230625,2.30388204,173.62,173.6,48.01156794]
[1748318231350,2.30388204,173.62,173.6,34.56]
[1748318232350,3.30719176,173.61,173.6,34.56]
[1748318233362,5.6112065,173.61,173.6,34.56]
[1748318236435,5.6112065,173.61,173.58,34.56]
[1748318236436,11.37124336,173.61,173.58,34.56]
[1748318237148,21.51561954,173.61,173.56,59.0]
[1748318237352,13.45156794,173.6,173.57,34.56]
[1748318237523,21.51561954,173.61,173.57,34.56]
[1748318238053,8.0640516,173.61,173.57,13.45156794]
[1748318238239,3.30802647,173.6,173.57,13.45156794]
[1748318238633,2.3042802,173.59,173.57,13.45156794]
[1748318239950,2.30401474,173.61,173.58,13.45156794]
[1748318240133,2.30401474,173.61,173.59,13.45156794]
[1748318240736,2.30388204,173.62,173.59,48.01156794]
[1748318241253,3.30830035,173.61,173.59,48.01156794]
[1748318242256,3.30830035,173.61,173.59,34.56]
[1748318242466,3.30830035,173.6,173.59,34.56]
[1748318242852,5.61244781,173.6,173.59,34.56]
[1748318246357,5.61244781,173.6,173.58,13.45156794]
[1748318246660,5.61244781,173.6,173.58,48.01156794]
[1748318253666,5.61244781,173.6,173.58,34.56]
[1748318254354,5.61258055,173.59,173.58,34.56]
[1748318257070,5.61258055,173.59,173.57,13.45156794]
[1748318257364,5.61258055,173.59,173.58,34.56]
[1748318257568,5.61258055,173.59,173.57,13.45156794]
[1748318257867,2.3042802,173.59,173.58,34.56]
[1748318258545,5.61585069,173.59,173.58,34.56]
[1748318262571,5.61585069,173.59,173.57,13.45156794]
[1748318263572,3.31157049,173.58,173.57,13.45156794]
[1748318264472,5.61598344,173.58,173.57,13.45156794]
[1748318264999,5.61598344,173.58,173.56,34.56]
[1748318265476,5.61598344,173.58,173.55,13.45156794]
[1748318265651,3.31157049,173.57,173.56,34.56]
[1748318266579,5.6161162,173.57,173.56,34.56]
[1748318267981,5.6161162,173.57,173.56,48.01156794]
[1748318271665,5.6161162,173.57,173.55,13.45156794]
[1748318271855,5.6161162,173.57,173.55,48.01156794]
[1748318272173,5.6161162,173.57,173.55,34.56]
[1748318272677,2.30441295,173.58,173.55,34.56]
[1748318275381,2.30467849,173.56,173.55,34.56]
[1748318276680,2.30467849,173.56,173.54,13.45156794]
[1748318276864,2.30467849,173.56,173.54,48.01156794]
[1748318277182,8.06544532,173.58,173.54,48.01156794]
[1748318279300,8.06544532,173.58,173.54,13.45156794]
[1748318279603,2.30467849,173.56,173.54,13.45156794]
[1748318280384,2.30467849,173.56,173.53,48.01156794]
[1748318281395,3.30929171,173.55,173.53,48.01156794]
[1748318281568,2.3049441,173.54,173.53,48.01156794]
[1748318282878,2.30454571,173.57,173.53,48.01156794]
[1748318283080,2.30454571,173.57,173.54,13.45156794]
[1748318283779,2.30454571,173.57,173.53,34.56]
[1748318283780,2.30454571,173.57,173.55,13.45156794]
[1748318284370,3.30887996,173.56,173.55,13.45156794]
[1748318285268,5.61355845,173.56,173.55,13.45156794]
[1748318285788,5.61355845,173.56,173.54,13.45156794]
[1748318285982,11.37525469,173.56,173.5,59.0]
[1748318286283,13.45156794,173.55,173.5,13.45156794]
[1748318286488,49.59156794,173.54,173.49,48.01156794]
[1748318286661,39.44887996,173.54,173.5,13.45156794]
[1748318287690,2.30520977,173.52,173.5,13.45156794]
[1748318288573,2.30520977,173.52,173.49,48.01156794]
[1748318289369,2.30520977,173.52,173.49,13.45156794]
[1748318289989,2.30520977,173.52,173.49,48.01156794]
[1748318290590,2.30507693,173.53,173.49,48.01156794]
[1748318290889,8.06776925,173.53,173.49,48.01156794]
[1748318291187,21.51933719,173.53,173.49,34.56]
[1748318291571,21.51933719,173.53,173.48,13.45156794]
[1748318291786,21.51933719,173.53,173.48,48.01156794]
[1748318292676,2.30534263,173.51,173.48,48.01156794]
[1748318293086,2.30534263,173.51,173.48,34.56]
[1748318293387,21.52026714,173.51,173.47,48.01156794]
[1748318293986,21.52026714,173.51,173.47,34.56]
[1748318295084,13.45156794,173.5,173.46,34.56]
[1748318295272,13.45156794,173.49,173.45,13.45156794]
[1748318295474,13.45156794,173.49,173.45,48.01156794]
[1748318295865,13.45156794,173.49,173.45,34.56]
[1748318296186,2.30574129,173.48,173.45,34.56]
[1748318296577,2.30574129,173.48,173.46,34.56]
[1748318298397,2.30574129,173.48,173.45,34.56]
[1748318298694,15.75730923,173.48,173.45,34.56]
[1748318299286,15.75730923,173.48,173.41,59.0]
[1748318299486,15.75730923,173.48,173.43,13.45156794]
[1748318299684,13.45156794,173.45,173.39,59.0]
[1748318300001,13.45156794,173.45,173.38,60.6605]
[1748318300180,44.21009452,173.48,173.43,13.45156794]
[1748318300383,13.45156794,173.47,173.43,13.45156794]
[1748318301305,16.75858327,173.47,173.4,34.58]
[1748318301476,16.75858327,173.47,173.42,13.45156794]
[1748318302004,2.30600714,173.46,173.42,13.45156794]
[1748318302204,15.75757508,173.46,173.42,13.45156794]
[1748318302496,15.75757508,173.46,173.43,34.58]
[1748318303779,2.30600714,173.46,173.43,34.58]
[1748318306401,15.75757508,173.46,173.43,34.58]
[1748318309403,2.30600714,173.46,173.43,34.58]
[1748318312008,2.30600714,173.46,173.43,48.03156794]
[1748318313017,13.45156794,173.45,173.38,60.6605]
[1748318313182,13.45156794,173.45,173.41,13.45156794]
[1748318314313,2.30627306,173.44,173.42,34.58]
[1748318315811,2.30627306,173.44,173.42,48.03156794]
[1748318317536,2.30614009,173.45,173.42,48.03156794]
[1748318319307,2.30614009,173.45,173.42,34.58]
[1748318320100,13.45156794,173.45,173.42,34.58]
[1748318321011,2.30627306,173.44,173.42,34.58]
[1748318322811,21.52352365,173.44,173.4,13.45156794]
[1748318322999,21.52352365,173.44,173.38,60.6605]
[1748318323206,21.52352365,173.44,173.4,13.45156794]
[1748318324103,21.52352365,173.44,173.4,48.03156794]
[1748318325042,21.52352365,173.44,173.4,13.45156794]
[1748318325225,5.76568265,173.44,173.41,13.45156794]
[1748318325396,2.30614009,173.45,173.41,13.45156794]
[1748318325597,15.75770803,173.45,173.41,13.45156794]
[1748318326020,24.81241749,173.45,173.4,48.03156794]
[1748318326835,60.93241749,173.45,173.4,48.03156794]
[1748318327220,60.93241749,173.45,173.4,34.58]
[1748318327428,13.45156794,173.44,173.4,48.03156794]
[1748318328302,57.64305827,173.45,173.41,13.45156794]
[1748318328509,44.19149033,173.45,173.41,13.45156794]
[1748318328707,57.64305827,173.45,173.41,13.45156794]
[1748318330123,57.64305827,173.45,173.41,48.03156794]